fUSD/lending_fUSD_20260309
["ID","MTS","AMOUNT","RATE_DAILY","PERIOD"]
[408018923,1773033032989,-500.0,0.00015,30]
[408018924,1773033032999,-500.0,0.00015,30]
[408018925,1773033033009,-500.0,0.00015,30]
[408018926,1773033033018,-500.0,0.00015,30]
[408018927,1773033033028,-500.0,0.00015,30]
[408018928,1773033033037,-500.0,0.00015,30]
[408018929,1773033033047,-500.0,0.00015,30]
[408018930,1773033033056,-500.0,0.00015,30]
[408018931,1773033033065,-500.0,0.00015,30]
[408018932,1773033033075,-700.0,0.00015,30]
[408018933,1773033033085,-500.0,0.00015,30]
[408018934,1773033033095,-501.12391094,0.00015,30]
[408018935,1773033033104,-500.0,0.00015,30]
[408018936,1773033033114,-500.0,0.00015,30]
[408018937,1773033033123,-974.24223008,0.00015,30]
[408018938,1773033033132,-500.0,0.00015,30]
[408018939,1773033033142,-500.0,0.00015,30]
[408018940,1773033033152,-500.0,0.00015,30]
[408018941,1773033033162,-500.0,0.00015,30]
[408018942,1773033033172,-500.2636592,0.00015,30]
[408018943,1773033033182,-783.06526647,0.00015,30]
[408018944,1773033033192,-500.0,0.00015,30]
[408018945,1773033033202,-500.0,0.00015,30]
[408018946,1773033033212,-500.0,0.00015,30]
[408018947,1773033033222,-500.0,0.00015,30]
[408018948,1773033033231,-500.0,0.00015,30]
[408018949,1773033033240,-500.0,0.00015,30]
[408018950,1773033033249,-500.0,0.00015,30]
[408018951,1773033033259,-500.0,0.00015,30]
[408018952,1773033033269,-500.0,0.00015,30]
[408018953,1773033033278,-500.0,0.00015,30]
[408018954,1773033033288,-500.0,0.00015,30]
[408018955,1773033033297,-500.0,0.00015,30]
[408018956,1773033033307,-500.0,0.00015,30]
[408018957,1773033033317,-500.0,0.00015,30]
[408018958,1773033033326,-500.0,0.00015,30]
[408018959,1773033033336,-500.0,0.00015,30]
[408018960,1773033033346,-500.0,0.00015,30]
[408018961,1773033033356,-500.0,0.00015,30]
[408018962,1773033033365,-576.36919382,0.00015,30]
[408018963,1773033033375,-500.0,0.00015,30]
[408018964,1773033033385,-500.0,0.00015,30]
[408018965,1773033033394,-500.0,0.00015,30]
[408018966,1773033033404,-500.0,0.00015,30]
[408018967,1773033033414,-500.0,0.00015,30]
[408018968,1773033033423,-500.0,0.00015,30]
[408018969,1773033033433,-420.0,0.00015337,2]
[408018970,1773033033443,-5000.00595703,0.000162,5]
[408018971,1773033033453,-181.78,0.000166,2]
[408018972,1773033033463,-587.0,0.00016802,2]
[408018973,1773033033472,-501.0,0.00017,2]
[408018974,1773033033481,-2137.06567597,0.00017499,2]
[408018975,1773033033490,-162.69,0.000179,2]
[408018976,1773033033500,-152.0,0.00017914,3]
[408018977,1773033033509,-2657.47,0.00017955,2]
[408018978,1773033033519,-163.18,0.00018035,2]
[408018979,1773033033528,-500.0,0.00018356,7]
[408018980,1773033033537,-1200.0,0.00018356,7]
[408018981,1773033033547,-1000.0,0.00018356,7]
[408018982,1773033033556,-2232.0,0.000184,2]
[408018983,1773033033565,-823.0,0.00018408,2]
[408018984,1773033033575,-152.0,0.00018421,4]
[408018985,1773033033584,-501.0,0.00018615,3]
[408018986,1773033033595,-1500.0,0.00018663,2]
[408018987,1773033033604,-172.87392778,0.00018692,2]
[408018988,1773033033613,-2578.96,0.00018712,2]
[408018989,1773033033622,-453.12863462,0.00018823,2]
[408018990,1773033033631,-457.32081978,0.00018823,2]
[408018991,1773033033640,-2000.0,0.00018919,2]
[408018992,1773033033649,-152.0,0.00018928,5]
[408018993,1773033033659,-160.0,0.00018948,2]
[408018994,1773033033668,-772.2074,0.00018991,2]
[408018995,1773033033678,-1852.42,0.00018995,2]
[408018996,1773033033687,-163.18,0.00019037,2]
[408018997,1773033033697,-276.01248471,0.00019078,2]
[408018998,1773033033706,-278.7279882,0.0001909,2]
[408018999,1773033033715,-5599.1393515,0.00019091,2]
[408019000,1773033033727,-2171.79258427,0.00019091,2]
[408019001,1773033033737,-390.37271931,0.00019091,2]
[408019002,1773033033748,-2660.86866456,0.00019091,2]
[408019003,1773033037792,-442.11974171,0.0001904,2]
[408019004,1773033037902,-404.88025829,0.0001904,2]
[408019005,1773033037912,-70.41471321,0.00019091,2]
[408019006,1773033037923,-91430.95806415,0.00019091,2]
[408019007,1773033037935,-276.01248465,0.00019169,2]
[408019008,1773033037944,-453.94,0.00019178,2]
[408019009,1773033037954,-1000.0,0.00019178,2]
[408019010,1773033037964,-500.0,0.00019185,2]
[408019011,1773033037973,-174.61919141,0.00019185,2]
[408019012,1773033037983,-3505.0,0.00019197,2]
[408019013,1773033037992,-1042.0,0.00019197,2]
[408019014,1773033038002,-622.461,0.00019197,2]
[408019015,1773033038011,-1342.0,0.00019197,2]
[408019016,1773033038020,-1279.0,0.00019197,2]
[408019017,1773033038029,-1213.0,0.00019197,2]
[408019018,1773033038037,-922.0,0.00019197,2]
[408019019,1773033038046,-2461.0,0.00019197,2]
[408019020,1773033038055,-414.0,0.00019197,2]
[408019021,1773033038064,-181.78,0.000192,2]
[408019022,1773033038073,-1000.0,0.000192,2]
[408019023,1773033038339,-2500.0,0.000192,2]
[408019024,1773033038373,-276.01248465,0.00019261,2]
[408019025,1773033038382,-35000.0,0.000193,2]
[408019026,1773033038392,-151.0,0.00019348,2]
[408019027,1773033038401,-276.01248465,0.00019352,2]
[408019028,1773033038410,-153.33762345,0.00019358,2]
[408019029,1773033038419,-152.0,0.00019436,6]
[408019030,1773033038429,-276.01248465,0.00019443,2]
[408019031,1773033038438,-350.0,0.00019452,2]
[408019032,1773033038447,-500.0,0.00019452,7]
[408019033,1773033038456,-1200.0,0.00019452,7]
[408019034,1773033038466,-1000.0,0.00019452,7]
[408019035,1773033038475,-1000.0,0.00019452,2]
[408019036,1773033038485,-151.0,0.00019457,2]
[408019037,1773033038494,-276.01248465,0.00019535,2]
[408019038,1773033038503,-151.0,0.00019565,2]
[408019039,1773033038512,-154.72176522,0.000196,2]
[408019040,1773033038522,-1000.0,0.00019626,2]
[408019041,1773033038532,-168.0,0.00019645,2]
[408019042,1773033038541,-150.0,0.00019672,2]
[408019043,1773033038550,-150.0,0.00019672,2]
[408019044,1773033038559,-150.0,0.00019672,2]
[408019045,1773033038568,-150.0,0.00019672,2]
[408019046,1773033038578,-500.0,0.00019672,2]
[408019047,1773033038588,-150.0,0.00019672,2]
[408019048,1773033038597,-500.0,0.00019672,2]
[408019049,1773033038606,-150.0,0.00019672,2]
[408019050,1773033038616,-500.0,0.00019672,2]
[408019051,1773033038625,-150.0,0.00019672,2]
[408019052,1773033038635,-150.0,0.00019672,2]
[408019053,1773033038644,-500.0,0.00019672,2]
[408019054,1773033038653,-177.99151511,0.00019672,2]
[408019055,1773033038662,-500.0,0.00019672,2]
[408019056,1773033038674,-500.0,0.00019672,2]
[408019057,1773033038684,-500.0,0.00019672,2]
[408019058,1773033038695,-150.0,0.00019672,2]
[408019059,1773033038704,-500.0,0.00019672,2]
[408019060,1773033038713,-500.0,0.00019672,2]
[408019061,1773033038724,-500.0,0.00019672,2]
[408019062,1773033038733,-150.0,0.00019672,2]
[408019063,1773033038743,-500.0,0.00019672,2]
[408019064,1773033038752,-500.0,0.00019672,2]
[408019065,1773033038762,-150.0,0.00019672,2]
[408019066,1773033038771,-150.0,0.00019672,2]
[408019067,1773033038781,-150.0,0.00019672,2]
[408019068,1773033038790,-150.0,0.00019672,2]
[408019069,1773033038800,-150.0,0.00019672,2]
[408019070,1773033038810,-500.0,0.00019672,2]
[408019071,1773033038820,-151.0,0.00019674,2]
[408019072,1773033038829,-451.0,0.00019704,2]
[408019073,1773033038838,-500.0,0.00019714,2]
[408019074,1773033038849,-151.0,0.00019714,2]
[408019075,1773033038859,-500.0,0.00019714,2]
[408019076,1773033038871,-151.0,0.00019714,2]
[408019077,1773033038881,-151.0,0.00019714,2]
[408019078,1773033038891,-151.0,0.00019714,2]
[408019079,1773033038901,-500.0,0.00019714,2]
[408019080,1773033038911,-151.0,0.00019714,2]
[408019081,1773033038921,-500.0,0.00019714,2]
[408019082,1773033038932,-500.0,0.00019714,2]
[408019083,1773033038941,-500.0,0.00019714,2]
[408019084,1773033038950,-500.0,0.00019714,2]
[408019085,1773033038959,-500.0,0.00019714,2]
[408019086,1773033038968,-500.0,0.00019714,2]
[408019087,1773033038978,-500.0,0.00019714,2]
[408019088,1773033038987,-500.0,0.00019714,2]
[408019089,1773033038996,-151.0,0.00019714,2]
[408019090,1773033039006,-151.0,0.00019714,2]
[408019091,1773033039017,-151.0,0.00019714,2]
[408019092,1773033039027,-151.0,0.00019714,2]
[408019093,1773033039037,-151.0,0.00019714,2]
[408019094,1773033039047,-151.0,0.00019714,2]
[408019095,1773033039057,-151.0,0.00019714,2]
[408019096,1773033039067,-151.0,0.00019714,2]
[408019097,1773033039075,-151.0,0.00019714,2]
[408019098,1773033039086,-151.0,0.00019714,2]
[408019099,1773033039095,-151.0,0.00019714,2]
[408019100,1773033039107,-163.42785597,0.00019714,2]
[408019101,1773033039116,-290.26104003,0.00019714,2]
[408019102,1773033039125,-294.31392228,0.00019715,2]
[408019103,1773033039135,-150.0,0.00019726,2]
[408019104,1773033039145,-150.0,0.00019726,2]
[408019105,1773033039154,-150.0,0.00019726,2]
[408019106,1773033039165,-500.0,0.00019726,2]
[408019107,1773033039176,-150.0,0.00019726,2]
[408019108,1773033039186,-150.0,0.00019726,2]
[408019109,1773033039197,-206.44664571,0.00019726,2]
[408019110,1773033039206,-316.77073993,0.00019726,2]
[408019111,1773033039219,-1823.13226007,0.00019726,2]
[408019112,1773033039228,-182.88501795,0.00019726,2]
[408019113,1773033039237,-1000.0,0.00019726,2]
[408019114,1773033039246,-168.09099825,0.00019727,2]
[408019115,1773033039256,-150.0,0.00019727,2]
[408019116,1773033039266,-150.0,0.00019727,2]
[408019117,1773033039281,-150.0,0.00019727,2]
[408019118,1773033039290,-500.0,0.00019727,2]
[408019119,1773033039299,-150.0,0.00019727,2]
[408019120,1773033039309,-502.15724466,0.00019727,2]
[408019121,1773033039318,-150.0,0.00019727,2]
[408019122,1773033039327,-500.0,0.00019727,2]
[408019123,1773033039336,-200.0,0.00019727,2]
[408019124,1773033039345,-150.0,0.00019727,2]
[408019125,1773033039356,-500.0,0.00019727,2]
[408019126,1773033039365,-500.0,0.00019727,2]
[408019127,1773033039375,-500.0,0.00019727,2]
[408019128,1773033039385,-500.0,0.00019727,2]
[408019129,1773033039395,-500.0,0.00019727,2]
[408019130,1773033039405,-500.0,0.00019727,2]
[408019131,1773033039415,-500.0,0.00019727,2]
[408019132,1773033039424,-500.0,0.00019727,2]
[408019133,1773033039433,-500.0,0.00019727,2]
[408019134,1773033039442,-150.84360211,0.00019727,2]
[408019135,1773033039451,-150.0,0.00019727,2]
[408019136,1773033039460,-150.0,0.00019727,2]
[408019137,1773033039469,-145.15547733,0.00019727,2]
[408019138,1773033040261,-197.0,0.0001904,2]
[408019139,1773033040271,-4.84452267,0.00019727,2]
[408019140,1773033040280,-500.0,0.00019727,2]
[408019141,1773033040290,-181.08010149,0.00019733,2]
[408019142,1773033040301,-294.31392221,0.00019741,2]
[408019143,1773033040311,-294.31392221,0.00019768,2]
[408019144,1773033040322,-150.0,0.00019781,2]
[408019145,1773033040331,-150.0,0.00019781,2]
[408019146,1773033040340,-150.0,0.00019781,2]
[408019147,1773033040349,-500.0,0.00019781,2]
[408019148,1773033040359,-152.96458514,0.00019781,2]
[408019149,1773033040369,-150.0,0.00019781,2]
[408019150,1773033040379,-150.0,0.00019782,2]
[408019151,1773033040390,-150.0,0.00019782,2]
[408019152,1773033040399,-550.0,0.00019782,2]
[408019153,1773033040410,-150.0,0.00019782,2]
[408019154,1773033040419,-150.0,0.00019782,2]
[408019155,1773033040428,-500.0,0.00019782,2]
[408019156,1773033040438,-500.0,0.00019782,2]
[408019157,1773033040448,-500.0,0.00019782,2]
[408019158,1773033040458,-202.77032458,0.00019782,2]
[408019159,1773033040469,-500.0,0.00019782,2]
[408019160,1773033040479,-500.0,0.00019782,2]
[408019161,1773033040489,-438.01614418,0.00019782,2]
[408019162,1773033040498,-500.0,0.00019782,2]
[408019163,1773033040508,-500.0,0.00019782,2]
[408019164,1773033040519,-500.0,0.00019782,2]
[408019165,1773033040529,-259.72265383,0.00019782,2]
[408019166,1773033040537,-200.0,0.00019782,2]
[408019167,1773033040546,-150.0,0.00019782,2]
[408019168,1773033040555,-500.0,0.00019782,2]
[408019169,1773033040564,-151.0,0.00019783,2]
[408019170,1773033040575,-294.31392221,0.00019794,2]
[408019171,1773033040585,-150.0,0.000198,14]
[408019172,1773033040595,-500.0,0.00019809,2]
[408019173,1773033040605,-500.0,0.00019809,2]
[408019174,1773033040617,-500.0,0.00019809,2]
[408019175,1773033040626,-672.93,0.00019809,2]
[408019176,1773033040635,-500.0,0.00019809,2]
[408019177,1773033040648,-500.0,0.00019809,2]
[408019178,1773033040658,-500.0,0.00019809,2]
[408019179,1773033040668,-500.0,0.00019809,2]
[408019180,1773033040678,-500.0,0.00019809,2]
[408019181,1773033040690,-500.0,0.00019809,2]
[408019182,1773033040699,-500.0,0.00019809,2]
[408019183,1773033040709,-500.0,0.00019809,2]
[408019184,1773033040720,-114923.84707944,0.0001981,2]
[408019185,1773033040730,-294.31392221,0.00019821,2]
[408019186,1773033040739,-150.0,0.00019836,2]
[408019187,1773033040749,-150.0,0.00019836,2]
[408019188,1773033040759,-285.50154825,0.00019836,2]
[408019189,1773033040768,-500.0,0.00019836,2]
[408019190,1773033040779,-259.96492822,0.00019836,2]
[408019191,1773033040789,-150.0,0.00019836,2]
[408019192,1773033040799,-202.34824749,0.00019836,2]
[408019193,1773033040809,-150.0,0.00019836,2]
[408019194,1773033040818,-500.0,0.00019836,2]
[408019195,1773033040829,-237.03813108,0.00019836,2]
[408019196,1773033040838,-500.0,0.00019836,2]
[408019197,1773033040847,-500.0,0.00019836,2]
[408019198,1773033040857,-500.0,0.00019836,2]
[408019199,1773033040870,-500.0,0.00019836,2]
[408019200,1773033040879,-500.0,0.00019836,2]
[408019201,1773033040888,-500.0,0.00019836,2]
[408019202,1773033040897,-192.86837004,0.00019836,2]
[408019203,1773033040908,-500.0,0.00019836,2]
[408019205,1773033040917,-200.0,0.0001984,2]
[408019206,1773033040926,-294.31392221,0.00019847,2]
[408019207,1773033040937,-25000.0,0.00019856,3]
[408019208,1773033040946,-25000.0,0.00019865,3]
[408019209,1773033040955,-500.0,0.00019873,2]
[408019210,1773033040964,-500.0,0.00019873,2]
[408019211,1773033040974,-501.66559118,0.00019873,2]
[408019212,1773033040983,-500.0,0.00019873,2]
[408019213,1773033040993,-500.0,0.00019873,2]
[408019214,1773033041003,-294.31392221,0.00019874,2]
[408019215,1773033041013,-25000.0,0.00019874,3]
[408019216,1773033041022,-25000.0,0.00019882,3]
[408019217,1773033041032,-152.59725118,0.0001989,2]
[408019218,1773033041041,-150.0,0.0001989,2]
[408019219,1773033041051,-151.0,0.00019891,2]
[408019220,1773033041060,-150.0,0.00019891,2]
[408019221,1773033041071,-150.0,0.00019891,2]
[408019222,1773033041082,-350.0,0.00019891,2]
[408019223,1773033041092,-500.0,0.00019891,2]
[408019224,1773033041101,-361.85670277,0.00019891,2]
[408019225,1773033041111,-211.27450762,0.00019891,2]
[408019226,1773033041120,-500.0,0.00019891,2]
[408019227,1773033041129,-500.0,0.00019891,2]
[408019228,1773033041139,-537.8007681,0.00019891,2]
[408019229,1773033041148,-25000.0,0.00019891,3]
[408019230,1773033041157,-168.0,0.00019893,2]
[408019231,1773033041166,-25000.0,0.000199,3]
[408019232,1773033041175,-2000.0,0.000199,2]
[408019233,1773033041184,-23196.00044374,0.000199,3]
[408019234,1773033041193,-2403.95604007,0.000199,2]
[408019235,1773033041203,-5000.0,0.000199,2]
[408019236,1773033041212,-427.812027,0.000199,2]
[408019237,1773033041221,-427.812027,0.000199,2]
[408019238,1773033041231,-427.812027,0.000199,2]
[408019239,1773033041241,-427.812027,0.000199,2]
[408019240,1773033041250,-217.255078,0.000199,2]
[408019241,1773033041259,-217.255078,0.000199,2]
[408019242,1773033041268,-217.255078,0.000199,2]
[408019243,1773033041279,-217.255078,0.000199,2]
[408019244,1773033041288,-197.22784449,0.000199,3]
[408019245,1773033041297,-151.0,0.000199,2]
[408019246,1773033041307,-151.0,0.000199,2]
[408019247,1773033041316,-408.369624,0.000199,2]
[408019248,1773033041325,-408.369624,0.000199,2]
[408019249,1773033041334,-408.369624,0.000199,2]
[408019250,1773033041344,-408.369624,0.000199,2]
[408019251,1773033041354,-616.51078411,0.000199,2]
[408019252,1773033041363,-151.0,0.000199,2]
[408019253,1773033041372,-151.0,0.000199,2]
[408019254,1773033041383,-294.31392221,0.000199,2]
[408019255,1773033041392,-774.49266639,0.000199,2]
[408019256,1773033041401,-3993.35858801,0.000199,2]
[408019257,1773033041411,-152.0,0.00019943,7]
[408019258,1773033041420,-250.0,0.00019946,2]
[408019259,1773033041429,-152.28254993,0.00019946,2]
[408019260,1773033041438,-150.0,0.00019973,2]
[408019261,1773033041447,-200.01,0.00019973,2]
[408019262,1773033041457,-396.345269,0.00019976,2]
[408019263,1773033041466,-396.345269,0.00019976,2]
[408019264,1773033041475,-396.345269,0.00019976,2]
[408019265,1773033041485,-396.345269,0.00019976,2]
[408019266,1773033041494,-185.158099,0.00019976,2]
[408019267,1773033041503,-159.050609,0.00019976,2]
[408019268,1773033041512,-159.050609,0.00019976,2]
[408019269,1773033041522,-159.050609,0.00019976,2]
[408019270,1773033041531,-159.050609,0.00019976,2]
[408019271,1773033041541,-151.0,0.00019976,2]
[408019272,1773033041550,-151.0,0.00019976,2]
[408019273,1773033041560,-151.0,0.00019976,2]
[408019274,1773033041569,-151.0,0.00019976,2]
[408019275,1773033041578,-152.0828,0.00019976,2]
[408019276,1773033041587,-151.0,0.00019976,2]
[408019277,1773033041596,-57607.00122224,0.0001998,2]
[408019278,1773033041604,-154.22868,0.0001998,2]
[408019279,1773033041614,-152.974718,0.0001998,2]
[408019280,1773033041623,-614.83539045,0.0001999,2]
[408019281,1773033041632,-614.83539045,0.0001999,2]
[408019282,1773033041641,-614.83539045,0.0001999,2]
[408019283,1773033041651,-151.0,0.00019996,2]
[408019284,1773033041660,-151.0,0.00019997,2]
[408019285,1773033041669,-150.0,0.00019998,2]
[408019286,1773033041678,-150.236,0.00019998,2]
[408019287,1773033041687,-150.0,0.00019998,2]
[408019288,1773033041696,-150.182,0.00019998,2]
[408019289,1773033041705,-150.1,0.00019998,2]
[408019290,1773033041714,-150.0,0.00019998,2]
[408019291,1773033041723,-150.0,0.00019998,2]
[408019292,1773033041732,-150.0,0.00019998,2]
[408019293,1773033041741,-150.186,0.00019998,2]
[408019294,1773033041750,-500.0,0.00019998,2]
[408019295,1773033041759,-500.0,0.00019998,2]
[408019296,1773033041768,-628.95,0.00019998,2]
[408019297,1773033041778,-500.0,0.00019998,2]
[408019298,1773033041787,-500.0,0.00019998,2]
[408019299,1773033041796,-500.0,0.00019998,2]
[408019300,1773033041806,-500.0,0.00019998,2]
[408019301,1773033041814,-155.509,0.00019999,2]
[408019302,1773033041823,-500.0,0.00019999,2]
[408019303,1773033041832,-500.0,0.00019999,2]
[408019304,1773033041841,-500.0,0.00019999,2]
[408019305,1773033041851,-500.0,0.00019999,2]
[408019306,1773033041862,-500.0,0.00019999,2]
[408019307,1773033041871,-500.0,0.00019999,2]
[408019308,1773033041880,-500.0,0.00019999,2]
[408019309,1773033041890,-506.77106008,0.00019999,2]
[408019310,1773033041901,-500.0,0.00019999,2]
[408019311,1773033041910,-605.55782896,0.00019999,2]
[408019312,1773033041922,-672.93,0.00019999,2]
[408019313,1773033041933,-672.93,0.00019999,2]
[408019314,1773033041943,-672.93,0.00019999,2]
[408019315,1773033041952,-672.93,0.00019999,2]
[408019316,1773033041963,-672.93,0.00019999,2]
[408019317,1773033041975,-672.93,0.00019999,2]
[408019318,1773033041984,-672.93,0.00019999,2]
[408019319,1773033041993,-672.93,0.00019999,2]
[408019320,1773033042002,-672.93,0.00019999,2]
[408019321,1773033042011,-672.93,0.00019999,2]
[408019322,1773033042021,-672.93,0.00019999,2]
[408019323,1773033042030,-672.93,0.00019999,2]
[408019324,1773033042039,-672.93,0.00019999,2]
[408019325,1773033042048,-672.93,0.00019999,2]
[408019326,1773033042058,-672.93,0.00019999,2]
[408019327,1773033042067,-672.93,0.00019999,2]
[408019328,1773033042076,-672.93,0.00019999,2]
[408019329,1773033042085,-672.93,0.00019999,2]
[408019330,1773033042094,-672.93,0.00019999,2]
[408019331,1773033042356,-672.93,0.00019999,2]
[408019332,1773033042367,-672.93,0.00019999,2]
[408019333,1773033042376,-672.93,0.00019999,2]
[408019334,1773033042386,-673.04580188,0.00019999,2]
[408019335,1773033042395,-500.0,0.00019999,2]
[408019336,1773033042404,-500.0,0.00019999,2]
[408019337,1773033042414,-500.0,0.00019999,2]
[408019338,1773033042423,-500.0,0.00019999,2]
[408019339,1773033042432,-500.0,0.00019999,2]
[408019340,1773033042441,-500.0,0.00019999,2]
[408019341,1773033042450,-500.0,0.00019999,2]
[408019342,1773033042460,-500.0,0.00019999,2]
[408019343,1773033042469,-500.0,0.00019999,2]
[408019344,1773033042478,-500.0,0.00019999,2]
[408019345,1773033042487,-500.0,0.00019999,2]
[408019346,1773033042496,-33181.70399474,0.00019999,2]
[408019347,1773033042506,-500.0,0.00019999,2]
[408019348,1773033042515,-500.0,0.00019999,2]
[408019349,1773033042524,-500.0,0.00019999,2]
[408019350,1773033042533,-500.0,0.00019999,2]
[408019351,1773033042544,-500.0,0.00019999,2]
[408019352,1773033042553,-500.0,0.00019999,2]
[408019353,1773033042562,-500.0,0.00019999,2]
[408019354,1773033042572,-500.0,0.00019999,2]
[408019355,1773033042581,-500.0,0.00019999,2]
[408019356,1773033042595,-500.0,0.00019999,2]
[408019357,1773033042605,-500.0,0.00019999,2]
[408019358,1773033042621,-490.0,0.00019999,2]
[408019360,1773033042631,-500.0,0.00019999,2]
[408019361,1773033042640,-507.08615799,0.00019999,2]
[408019362,1773033042650,-500.0,0.00019999,2]
[408019363,1773033042660,-500.0,0.00019999,2]
[408019364,1773033042670,-500.0,0.00019999,2]
[408019365,1773033042679,-500.0,0.00019999,2]
[408019367,1773033042689,-500.0,0.00019999,2]
[408019369,1773033042699,-500.0,0.00019999,2]
[408019370,1773033042708,-500.0,0.00019999,2]
[408019371,1773033042718,-500.0,0.00019999,2]
[408019372,1773033042727,-426.88612498,0.00019999,2]
[408019374,1773033042736,-628.95,0.00019999,2]
[408019375,1773033042749,-628.95,0.00019999,2]
[408019376,1773033042759,-628.95,0.00019999,2]
[408019377,1773033042768,-628.95,0.00019999,2]
[408019378,1773033042778,-628.95,0.00019999,2]
[408019379,1773033042788,-628.95,0.00019999,2]
[408019380,1773033042798,-628.95,0.00019999,2]
[408019381,1773033042808,-628.95,0.00019999,2]
[408019382,1773033042817,-628.95,0.00019999,2]
[408019383,1773033042826,-628.95,0.00019999,2]
[408019384,1773033042835,-628.95,0.00019999,2]
[408019385,1773033042845,-628.95,0.00019999,2]
[408019386,1773033042855,-628.95,0.00019999,2]
[408019387,1773033042872,-628.95,0.00019999,2]
[408019388,1773033042882,-628.95,0.00019999,2]
[408019389,1773033042891,-628.95,0.00019999,2]
[408019390,1773033042902,-628.95,0.00019999,2]
[408019391,1773033042912,-628.95,0.00019999,2]
[408019392,1773033042921,-628.95,0.00019999,2]
[408019393,1773033042932,-628.95,0.00019999,2]
[408019394,1773033042941,-628.95,0.00019999,2]
[408019395,1773033042951,-628.95,0.00019999,2]
[408019396,1773033042960,-628.97016354,0.00019999,2]
[408019397,1773033042973,-500.0,0.00019999,2]
[408019398,1773033042983,-500.0,0.00019999,2]
[408019399,1773033042993,-500.0,0.00019999,2]
[408019400,1773033043002,-500.0,0.00019999,2]
[408019401,1773033043012,-500.0,0.00019999,2]
[408019402,1773033043021,-500.0,0.00019999,2]
[408019403,1773033043031,-505.78229935,0.00019999,2]
[408019404,1773033043041,-500.0,0.00019999,2]
[408019405,1773033043050,-500.0,0.00019999,2]
[408019406,1773033043060,-503.03760092,0.00019999,2]
[408019407,1773033043069,-500.0,0.00019999,2]
[408019408,1773033043079,-217.255078,0.00019999,2]
[408019409,1773033043089,-217.255078,0.00019999,2]
[408019410,1773033043098,-217.255078,0.00019999,2]
[408019411,1773033043108,-217.255078,0.00019999,2]
[408019412,1773033043117,-500.0,0.00019999,2]
[408019413,1773033043127,-151.0,0.00019999,2]
[408019414,1773033043137,-151.0,0.00019999,2]
[408019415,1773033043146,-500.0,0.00019999,2]
[408019416,1773033043155,-589.16,0.00019999,2]
[408019417,1773033043168,-408.369624,0.00019999,2]
[408019418,1773033043178,-408.369624,0.00019999,2]
[408019420,1773033043188,-408.369624,0.00019999,2]
[408019421,1773033043197,-408.369624,0.00019999,2]
[408019422,1773033043206,-151.0,0.00019999,2]
[408019423,1773033043216,-500.0,0.00019999,2]
[408019424,1773033043226,-543.28516299,0.00019999,2]
[408019425,1773033043236,-349.03538361,0.00019999,2]
[408019426,1773033043245,-294.75283121,0.00019999,2]
[408019427,1773033043255,-500.0,0.00019999,2]
[408019428,1773033043264,-500.0,0.00019999,2]